[Event "Late-Titled-Tuesday-Blitz-September-12-2023"]
[Site "Chess.com"]
[Date "2023.09.12"]
[Round "6"]
[White "chessprincesa1"]
[Black "CarlosjPineror"]
[Result "0-1"]
[WhiteElo "2264"]
[BlackElo "2438"]
[TimeControl "180+1"]
[EndTime "15:04:12 PDT"]
[Termination "CarlosjPineror won on time"]

1. d4 {[%clk 0:02:53.8]} 1... Nf6 {[%clk 0:02:51.9]} 2. c4 {[%clk 0:02:53.8]}
2... g6 {[%clk 0:02:51.7]} 3. g3 {[%clk 0:02:54.1]} 3... Bg7 {[%clk 0:02:51.8]}
4. Bg2 {[%clk 0:02:54.6]} 4... O-O {[%clk 0:02:52.3]} 5. Nc3 {[%clk 0:02:54.5]}
5... d6 {[%clk 0:02:52.2]} 6. Nf3 {[%clk 0:02:55]} 6... Nbd7 {[%clk 0:02:51]} 7.
O-O {[%clk 0:02:55.1]} 7... e5 {[%clk 0:02:51.5]} 8. Qc2 {[%clk 0:02:55.4]} 8...
exd4 {[%clk 0:02:49.9]} 9. Nxd4 {[%clk 0:02:54]} 9... Nb6 {[%clk 0:02:49.8]} 10.
b3 {[%clk 0:02:43.9]} 10... c5 {[%clk 0:02:48.4]} 11. Ndb5 {[%clk 0:02:11.5]}
11... a6 {[%clk 0:02:30.2]} 12. Na3 {[%clk 0:02:11.2]} 12... d5 {[%clk
0:02:30.3]} 13. cxd5 {[%clk 0:02:03.7]} 13... Nfxd5 {[%clk 0:02:29.2]} 14. Bb2
{[%clk 0:02:03.3]} 14... Nb4 {[%clk 0:02:04.2]} 15. Qc1 {[%clk 0:01:54.3]} 15...
Qe7 {[%clk 0:02:03.1]} 16. Nc4 {[%clk 0:01:43.3]} 16... Nxc4 {[%clk 0:01:52.6]}
17. bxc4 {[%clk 0:01:44.2]} 17... Be6 {[%clk 0:01:52.4]} 18. Nd5 {[%clk
0:01:39]} 18... Bxd5 {[%clk 0:01:50.1]} 19. cxd5 {[%clk 0:01:34.3]} 19... Qxe2
{[%clk 0:01:37.5]} 20. Bxg7 {[%clk 0:01:32.2]} 20... Kxg7 {[%clk 0:01:37.4]} 21.
Qxc5 {[%clk 0:01:30.7]} 21... Nd3 {[%clk 0:00:58.7]} 22. Qd4+ {[%clk 0:01:25.4]}
22... f6 {[%clk 0:00:56.6]} 23. Rad1 {[%clk 0:01:20.1]} 23... Ne5 {[%clk
0:00:55.5]} 24. f4 {[%clk 0:01:05.1]} 24... Ng4 {[%clk 0:00:52.6]} 25. Rfe1
{[%clk 0:00:59.6]} 25... Qxa2 {[%clk 0:00:52.7]} 26. h3 {[%clk 0:00:54.2]} 26...
Nh6 {[%clk 0:00:50.9]} 27. d6 {[%clk 0:00:50.2]} 27... Nf5 {[%clk 0:00:43.9]}
28. Qf2 {[%clk 0:00:31.8]} 28... Qxf2+ {[%clk 0:00:34.9]} 29. Kxf2 {[%clk
0:00:32.7]} 29... Rad8 {[%clk 0:00:35.2]} 30. Re6 {[%clk 0:00:16.9]} 30... b5
{[%clk 0:00:24.5]} 31. g4 {[%clk 0:00:16.8]} 31... Nh6 {[%clk 0:00:24.9]} 32.
Bc6 {[%clk 0:00:15.6]} 32... b4 {[%clk 0:00:18]} 33. d7 {[%clk 0:00:15.3]} 33...
a5 {[%clk 0:00:17.9]} 34. Ra1 {[%clk 0:00:11.6]} 34... b3 {[%clk 0:00:15.6]} 35.
Re2 {[%clk 0:00:02.4]} 35... Rb8 {[%clk 0:00:14]} 36. Rb2 {[%clk 0:00:02.3]}
36... Rb6 {[%clk 0:00:11.5]} 37. Ba4 {[%clk 0:00:01.3]} 37... Rb4 {[%clk
0:00:10.1]} 0-1

[Event "Late-Titled-Tuesday-Blitz-September-12-2023"]
[Site "Chess.com"]
[Date "2023.09.12"]
[Round "6"]
[White "mbojan"]
[Black "tteshan"]
[Result "1-0"]
[WhiteElo "2771"]
[BlackElo "2533"]
[TimeControl "180+1"]
[EndTime "15:04:19 PDT"]
[Termination "mbojan won by resignation"]

1. a3 {[%clk 0:03:00.9]} 1... c5 {[%clk 0:02:58.2]} 2. b4 {[%clk 0:02:59.9]}
2... e6 {[%clk 0:02:55.5]} 3. bxc5 {[%clk 0:02:59.9]} 3... Bxc5 {[%clk
0:02:56.4]} 4. d4 {[%clk 0:03:00.5]} 4... Be7 {[%clk 0:02:56.2]} 5. c4 {[%clk
0:03:01.1]} 5... Nf6 {[%clk 0:02:56]} 6. Nc3 {[%clk 0:03:01.8]} 6... O-O {[%clk
0:02:55.6]} 7. Nf3 {[%clk 0:03:02.6]} 7... d5 {[%clk 0:02:52.5]} 8. cxd5 {[%clk
0:03:03.5]} 8... Nxd5 {[%clk 0:02:52.4]} 9. Nxd5 {[%clk 0:03:03.9]} 9... Qxd5
{[%clk 0:02:51.3]} 10. e3 {[%clk 0:03:01.9]} 10... Nc6 {[%clk 0:02:50.3]} 11.
Bd3 {[%clk 0:03:02.6]} 11... Qh5 {[%clk 0:02:36.8]} 12. O-O {[%clk 0:03:02.5]}
12... Rd8 {[%clk 0:02:35.7]} 13. Bb2 {[%clk 0:03:02.3]} 13... Bd7 {[%clk
0:02:31.3]} 14. Rc1 {[%clk 0:02:54.4]} 14... Rac8 {[%clk 0:02:30.4]} 15. Qe2
{[%clk 0:02:55]} 15... Be8 {[%clk 0:02:29.1]} 16. Rfd1 {[%clk 0:02:54.7]} 16...
Na5 {[%clk 0:02:04.8]} 17. h3 {[%clk 0:02:51.4]} 17... Ba4 {[%clk 0:01:57.5]}
18. Rxc8 {[%clk 0:02:50.1]} 18... Rxc8 {[%clk 0:01:57.3]} 19. Rc1 {[%clk
0:02:50.8]} 19... Rxc1+ {[%clk 0:01:54.5]} 20. Bxc1 {[%clk 0:02:51.7]} 20... Qd5
{[%clk 0:01:50.4]} 21. e4 {[%clk 0:02:48.3]} 21... Qc6 {[%clk 0:01:46.2]} 22.
Bb2 {[%clk 0:02:37.4]} 22... h6 {[%clk 0:01:45.4]} 23. d5 {[%clk 0:02:32.3]}
23... Qc8 {[%clk 0:01:37.1]} 24. dxe6 {[%clk 0:02:27.5]} 24... Qxe6 {[%clk
0:01:38]} 25. Nd4 {[%clk 0:02:27.7]} 25... Qd7 {[%clk 0:01:32.3]} 26. Nf5 {[%clk
0:02:27.6]} 26... Bf8 {[%clk 0:01:32]} 27. Bxg7 {[%clk 0:02:02.4]} 27... Bxg7
{[%clk 0:01:18.6]} 28. Qg4 {[%clk 0:02:02.6]} 28... f6 {[%clk 0:01:19]} 29.
Nxh6+ {[%clk 0:02:03]} 29... Kh8 {[%clk 0:01:15.1]} 30. Nf5 {[%clk 0:02:02.7]}
30... Qf7 {[%clk 0:00:46.7]} 31. Nd6 {[%clk 0:01:24.5]} 31... Qc7 {[%clk
0:00:30.6]} 32. Nf5 {[%clk 0:01:05.8]} 32... Be8 {[%clk 0:00:26.7]} 33. Bc2
{[%clk 0:00:48.9]} 33... Qf7 {[%clk 0:00:18.7]} 34. e5 {[%clk 0:00:16.4]} 34...
Qg6 {[%clk 0:00:15.8]} 35. Qh4+ {[%clk 0:00:05.8]} 35... Qh7 {[%clk 0:00:09.4]}
36. Qg3 {[%clk 0:00:01.9]} 36... Qg6 {[%clk 0:00:09.1]} 37. Qc3 {[%clk 0:00:02]}
37... Nc6 {[%clk 0:00:05.5]} 38. Nd6 {[%clk 0:00:01.8]} 38... Qh5 {[%clk
0:00:04.6]} 39. exf6 {[%clk 0:00:02.5]} 1-0

[Event "Late-Titled-Tuesday-Blitz-September-12-2023"]
[Site "Chess.com"]
[Date "2023.09.12"]
[Round "6"]
[White "wadsy27"]
[Black "ArturoCaceres"]
[Result "1/2-1/2"]
[WhiteElo "2605"]
[BlackElo "2467"]
[TimeControl "180+1"]
[EndTime "15:04:20 PDT"]
[Termination "Game drawn by agreement"]

1. Nf3 {[%clk 0:02:59.2]} 1... Nf6 {[%clk 0:02:59.4]} 2. g3 {[%clk 0:02:58.7]}
2... b6 {[%clk 0:02:57.9]} 3. Bg2 {[%clk 0:02:58.9]} 3... Bb7 {[%clk 0:02:58.6]}
4. O-O {[%clk 0:02:59.6]} 4... e6 {[%clk 0:02:57.9]} 5. d3 {[%clk 0:02:59.8]}
5... d5 {[%clk 0:02:58.1]} 6. Nbd2 {[%clk 0:02:58.1]} 6... Nbd7 {[%clk
0:02:54.7]} 7. Qe1 {[%clk 0:02:58]} 7... Be7 {[%clk 0:02:50.6]} 8. e4 {[%clk
0:02:57.7]} 8... dxe4 {[%clk 0:02:50.4]} 9. dxe4 {[%clk 0:02:57.1]} 9... Ba6
{[%clk 0:02:49.1]} 10. e5 {[%clk 0:02:53.8]} 10... Nd5 {[%clk 0:02:23.7]} 11. c4
{[%clk 0:02:52.7]} 11... Nb4 {[%clk 0:02:23.8]} 12. Nd4 {[%clk 0:02:51.7]} 12...
c5 {[%clk 0:02:13.8]} 13. Nc6 {[%clk 0:02:32.7]} 13... Nxc6 {[%clk 0:02:13.9]}
14. Bxc6 {[%clk 0:02:33.4]} 14... Rc8 {[%clk 0:02:14]} 15. Bg2 {[%clk
0:02:27.9]} 15... Qc7 {[%clk 0:02:09.8]} 16. b3 {[%clk 0:02:16.3]} 16... Bb7
{[%clk 0:02:09.2]} 17. Bb2 {[%clk 0:02:12.9]} 17... Bxg2 {[%clk 0:02:08.6]} 18.
Kxg2 {[%clk 0:02:13]} 18... O-O {[%clk 0:02:09]} 19. Rd1 {[%clk 0:02:12.6]}
19... Nb8 {[%clk 0:02:09.2]} 20. Ne4 {[%clk 0:01:51.2]} 20... Nc6 {[%clk
0:02:08.2]} 21. Nf6+ {[%clk 0:01:44.1]} 21... gxf6 {[%clk 0:01:26]} 22. exf6
{[%clk 0:01:43.8]} 22... Bd6 {[%clk 0:01:26]} 23. Qd2 {[%clk 0:01:43.4]} 23...
Bf4 {[%clk 0:01:26.5]} 24. Qxf4 {[%clk 0:01:36.5]} 24... Qxf4 {[%clk 0:01:25.8]}
25. gxf4 {[%clk 0:01:36.7]} 25... Rfd8 {[%clk 0:01:25.8]} 26. Kf3 {[%clk
0:01:34.4]} 26... Rxd1 {[%clk 0:01:15.1]} 27. Rxd1 {[%clk 0:01:33.3]} 27... Rd8
{[%clk 0:01:11.5]} 28. Rg1+ {[%clk 0:01:33]} 28... Kh8 {[%clk 0:01:11.2]} 29.
Rg7 {[%clk 0:01:23.1]} 29... Rd7 {[%clk 0:01:04.5]} 30. Bc3 {[%clk 0:01:14.1]}
30... a6 {[%clk 0:01:02.5]} 31. a4 {[%clk 0:01:10.8]} 31... a5 {[%clk
0:00:56.7]} 32. h4 {[%clk 0:01:09.2]} 32... h6 {[%clk 0:00:31.6]} 33. Ke2 {[%clk
0:01:03.2]} 33... Na7 {[%clk 0:00:18.6]} 34. Rg3 {[%clk 0:00:39.6]} 34... Nc6
{[%clk 0:00:17.7]} 35. Rd3 {[%clk 0:00:37.6]} 35... Rxd3 {[%clk 0:00:17]} 36.
Kxd3 {[%clk 0:00:37.7]} 36... Nb8 {[%clk 0:00:14.1]} 37. Be5 {[%clk 0:00:36.8]}
37... Nd7 {[%clk 0:00:14]} 38. h5 {[%clk 0:00:30]} 38... Nxe5+ {[%clk
0:00:07.9]} 39. fxe5 {[%clk 0:00:29.9]} 39... Kg8 {[%clk 0:00:07.5]} 40. Ke4
{[%clk 0:00:29.7]} 40... Kf8 {[%clk 0:00:07.6]} 41. f4 {[%clk 0:00:29.9]} 41...
Ke8 {[%clk 0:00:08]} 42. f5 {[%clk 0:00:29.8]} 42... Kd7 {[%clk 0:00:08.1]} 43.
Kf4 {[%clk 0:00:27.5]} 43... Ke8 {[%clk 0:00:06.1]} 44. Ke4 {[%clk 0:00:24.3]}
44... Kd7 {[%clk 0:00:06.4]} 45. Ke3 {[%clk 0:00:23.2]} 45... Ke8 {[%clk
0:00:05.9]} 46. fxe6 {[%clk 0:00:21.8]} 46... fxe6 {[%clk 0:00:06.3]} 1/2-1/2

[Event "Late-Titled-Tuesday-Blitz-September-12-2023"]
[Site "Chess.com"]
[Date "2023.09.12"]
[Round "6"]
[White "SEBAZZANO"]
[Black "Defenstrator"]
[Result "1-0"]
[WhiteElo "2207"]
[BlackElo "2360"]
[TimeControl "180+1"]
[EndTime "15:04:22 PDT"]
[Termination "SEBAZZANO won by checkmate"]

1. d4 {[%clk 0:03:00.3]} 1... e6 {[%clk 0:02:52.4]} 2. Bf4 {[%clk 0:02:59.2]}
2... g5 {[%clk 0:02:43.4]} 3. Be5 {[%clk 0:02:54.3]} 3... f6 {[%clk 0:02:43]} 4.
Bg3 {[%clk 0:02:53.2]} 4... Bg7 {[%clk 0:02:39.7]} 5. e4 {[%clk 0:02:51.3]} 5...
h5 {[%clk 0:02:35]} 6. h4 {[%clk 0:02:48.4]} 6... g4 {[%clk 0:02:32.6]} 7. Bd3
{[%clk 0:02:45.6]} 7... Ne7 {[%clk 0:02:33]} 8. Ne2 {[%clk 0:02:39.1]} 8... b6
{[%clk 0:02:29.2]} 9. Nbc3 {[%clk 0:02:37.5]} 9... Bb7 {[%clk 0:02:29.8]} 10.
Qd2 {[%clk 0:02:37.3]} 10... Na6 {[%clk 0:02:23.3]} 11. a3 {[%clk 0:02:32.9]}
11... c5 {[%clk 0:02:22]} 12. d5 {[%clk 0:02:22.4]} 12... e5 {[%clk 0:02:13.9]}
13. d6 {[%clk 0:02:06]} 13... Nc8 {[%clk 0:02:01.2]} 14. Bc4 {[%clk 0:01:59.7]}
14... Bf8 {[%clk 0:01:58.2]} 15. Qd3 {[%clk 0:01:50.1]} 15... Nxd6 {[%clk
0:01:28.6]} 16. Bxa6 {[%clk 0:01:48.2]} 16... Bc6 {[%clk 0:01:15.9]} 17. a4
{[%clk 0:01:38.2]} 17... Qc7 {[%clk 0:01:06.6]} 18. Nd5 {[%clk 0:01:32.2]} 18...
Bxd5 {[%clk 0:01:04.7]} 19. Qxd5 {[%clk 0:01:31.8]} 19... Rb8 {[%clk 0:00:57.5]}
20. Bxe5 {[%clk 0:01:29.1]} 20... fxe5 {[%clk 0:00:49.1]} 21. Qxe5+ {[%clk
0:01:28.5]} 21... Kf7 {[%clk 0:00:49.2]} 22. Qxh8 {[%clk 0:01:25.9]} 22... Bg7
{[%clk 0:00:46.2]} 23. Qxh5+ {[%clk 0:01:24.2]} 23... Kg8 {[%clk 0:00:47.1]} 24.
Bc4+ {[%clk 0:00:59.6]} 24... Nxc4 {[%clk 0:00:46.5]} 25. Qd5+ {[%clk
0:01:00.1]} 25... Kh8 {[%clk 0:00:46.7]} 26. Qxc4 {[%clk 0:01:00.1]} 26... Rf8
{[%clk 0:00:35.2]} 27. O-O {[%clk 0:00:53.3]} 27... Qd8 {[%clk 0:00:30.4]} 28.
g3 {[%clk 0:00:48.2]} 28... Qf6 {[%clk 0:00:29.9]} 29. Rad1 {[%clk 0:00:42.1]}
29... d6 {[%clk 0:00:29.7]} 30. Nf4 {[%clk 0:00:37.3]} 30... Bh6 {[%clk
0:00:25.7]} 31. Qe6 {[%clk 0:00:31.8]} 31... Bxf4 {[%clk 0:00:16.6]} 32. Qxf6+
{[%clk 0:00:31.4]} 32... Rxf6 {[%clk 0:00:17.3]} 33. gxf4 {[%clk 0:00:31.5]}
33... Rxf4 {[%clk 0:00:18.2]} 34. Rfe1 {[%clk 0:00:28.6]} 34... Rf6 {[%clk
0:00:18.5]} 35. Rd5 {[%clk 0:00:25.9]} 35... Kg7 {[%clk 0:00:18.3]} 36. Rg5+
{[%clk 0:00:25.5]} 36... Kf7 {[%clk 0:00:19.2]} 37. Rf5 {[%clk 0:00:25.2]} 37...
Rxf5 {[%clk 0:00:18.9]} 38. exf5 {[%clk 0:00:25.3]} 38... d5 {[%clk 0:00:19.8]}
39. Re6 {[%clk 0:00:23.8]} 39... d4 {[%clk 0:00:20.4]} 40. Rg6 {[%clk
0:00:22.8]} 40... a6 {[%clk 0:00:18.8]} 41. h5 {[%clk 0:00:22.6]} 41... b5
{[%clk 0:00:19.7]} 42. axb5 {[%clk 0:00:22]} 42... axb5 {[%clk 0:00:20.6]} 43.
h6 {[%clk 0:00:22.6]} 43... c4 {[%clk 0:00:21.4]} 44. h7 {[%clk 0:00:22.6]}
44... c3 {[%clk 0:00:21.9]} 45. h8=Q {[%clk 0:00:21.7]} 45... cxb2 {[%clk
0:00:21.9]} 46. Qh7+ {[%clk 0:00:21.6]} 46... Kf8 {[%clk 0:00:22.4]} 47. Rg8#
{[%clk 0:00:21.2]} 1-0

[Event "Late-Titled-Tuesday-Blitz-September-12-2023"]
[Site "Chess.com"]
[Date "2023.09.12"]
[Round "6"]
[White "xozr"]
[Black "RaphaeI"]
[Result "0-1"]
[WhiteElo "2366"]
[BlackElo "2606"]
[TimeControl "180+1"]
[EndTime "15:04:23 PDT"]
[Termination "RaphaeI won by resignation"]

1. e4 {[%clk 0:03:00.9]} 1... e5 {[%clk 0:02:59.8]} 2. Nf3 {[%clk 0:03:00.8]}
2... Nc6 {[%clk 0:03:00.1]} 3. Bc4 {[%clk 0:03:00.9]} 3... Nf6 {[%clk
0:02:58.5]} 4. d3 {[%clk 0:03:00.9]} 4... Be7 {[%clk 0:02:57.1]} 5. O-O {[%clk
0:03:01.1]} 5... O-O {[%clk 0:02:56.6]} 6. Re1 {[%clk 0:02:54.8]} 6... d6 {[%clk
0:02:55.7]} 7. c3 {[%clk 0:02:54.1]} 7... Na5 {[%clk 0:02:52.4]} 8. Bb5 {[%clk
0:02:51.9]} 8... a6 {[%clk 0:02:52.9]} 9. Ba4 {[%clk 0:02:51.9]} 9... b5 {[%clk
0:02:53.6]} 10. Bc2 {[%clk 0:02:52.1]} 10... c5 {[%clk 0:02:54.3]} 11. h3 {[%clk
0:02:50.7]} 11... Nc6 {[%clk 0:02:49]} 12. Nbd2 {[%clk 0:02:50]} 12... Re8
{[%clk 0:02:45.7]} 13. Nf1 {[%clk 0:02:48.5]} 13... h6 {[%clk 0:02:45.9]} 14. g4
{[%clk 0:02:42.6]} 14... Bf8 {[%clk 0:02:18.6]} 15. Ng3 {[%clk 0:02:42.1]} 15...
d5 {[%clk 0:02:15.2]} 16. Qe2 {[%clk 0:02:25.9]} 16... g6 {[%clk 0:01:50.2]} 17.
Kh2 {[%clk 0:02:22.3]} 17... Bg7 {[%clk 0:01:34]} 18. a4 {[%clk 0:02:12.1]}
18... b4 {[%clk 0:01:33]} 19. Be3 {[%clk 0:02:09.1]} 19... d4 {[%clk 0:00:58.2]}
20. Bd2 {[%clk 0:02:07.7]} 20... dxc3 {[%clk 0:00:55]} 21. bxc3 {[%clk
0:02:08.6]} 21... a5 {[%clk 0:00:55.4]} 22. Bb3 {[%clk 0:02:06.8]} 22... Ba6
{[%clk 0:00:55.3]} 23. Be3 {[%clk 0:01:41.9]} 23... Bxd3 {[%clk 0:00:53.5]} 24.
Qa2 {[%clk 0:01:30.3]} 24... Qc7 {[%clk 0:00:29]} 25. Rad1 {[%clk 0:01:26.9]}
25... Rad8 {[%clk 0:00:21.6]} 26. g5 {[%clk 0:00:56.1]} 26... Nxe4 {[%clk
0:00:16.5]} 27. gxh6 {[%clk 0:00:54.5]} 27... Nxc3 {[%clk 0:00:15.3]} 28. Bxf7+
{[%clk 0:00:20.8]} 28... Qxf7 {[%clk 0:00:13.5]} 29. h7+ {[%clk 0:00:21.4]}
29... Kf8 {[%clk 0:00:10.4]} 30. Bxc5+ {[%clk 0:00:20.3]} 30... Ne7 {[%clk
0:00:10.2]} 31. Qxf7+ {[%clk 0:00:17.7]} 31... Kxf7 {[%clk 0:00:11.1]} 32. Ng5+
{[%clk 0:00:17.5]} 32... Kf6 {[%clk 0:00:07.9]} 33. Rxd3 {[%clk 0:00:09.8]}
33... Rxd3 {[%clk 0:00:07.1]} 34. N3e4+ {[%clk 0:00:08.5]} 34... Nxe4 {[%clk
0:00:07.3]} 35. Nxe4+ {[%clk 0:00:08.2]} 35... Ke6 {[%clk 0:00:07.6]} 36. Ng5+
{[%clk 0:00:07.2]} 36... Kd5 {[%clk 0:00:07.9]} 37. Bxe7 {[%clk 0:00:04.9]}
37... Rxe7 {[%clk 0:00:08.3]} 38. f4 {[%clk 0:00:02.5]} 38... e4 {[%clk
0:00:07.9]} 39. f5 {[%clk 0:00:02.5]} 39... gxf5 {[%clk 0:00:07.8]} 0-1

[Event "Late-Titled-Tuesday-Blitz-September-12-2023"]
[Site "Chess.com"]
[Date "2023.09.12"]
[Round "6"]
[White "Mariia89"]
[Black "CURRUTACO59"]
[Result "1-0"]
[WhiteElo "2033"]
[BlackElo "2256"]
[TimeControl "180+1"]
[EndTime "15:04:24 PDT"]
[Termination "Mariia89 won on time"]

1. d4 {[%clk 0:02:57.3]} 1... Nf6 {[%clk 0:02:57.7]} 2. Nf3 {[%clk 0:02:57.3]}
2... e6 {[%clk 0:02:56.3]} 3. Bg5 {[%clk 0:02:57.2]} 3... h6 {[%clk 0:02:53.5]}
4. Bh4 {[%clk 0:02:56.5]} 4... b6 {[%clk 0:02:52.8]} 5. Nbd2 {[%clk 0:02:56]}
5... Bb7 {[%clk 0:02:52.3]} 6. e3 {[%clk 0:02:56]} 6... Be7 {[%clk 0:02:51.1]}
7. Bd3 {[%clk 0:02:55.8]} 7... d5 {[%clk 0:02:51.3]} 8. c3 {[%clk 0:02:55.4]}
8... c5 {[%clk 0:02:51.4]} 9. Ne5 {[%clk 0:02:54.5]} 9... O-O {[%clk 0:02:50.5]}
10. O-O {[%clk 0:02:53]} 10... Nc6 {[%clk 0:02:23.4]} 11. f4 {[%clk 0:02:51.9]}
11... Nd7 {[%clk 0:02:11.7]} 12. Bg3 {[%clk 0:02:45.9]} 12... Bd6 {[%clk
0:01:50.7]} 13. Ndf3 {[%clk 0:02:21.6]} 13... Ne7 {[%clk 0:01:44]} 14. Nxd7
{[%clk 0:02:17.5]} 14... Qxd7 {[%clk 0:01:44.9]} 15. Ne5 {[%clk 0:02:18]} 15...
Qc7 {[%clk 0:01:42.9]} 16. Qg4 {[%clk 0:02:13.7]} 16... f5 {[%clk 0:01:38.4]}
17. Qh5 {[%clk 0:02:05.4]} 17... Kh7 {[%clk 0:01:20.7]} 18. Bh4 {[%clk
0:01:33.4]} 18... g6 {[%clk 0:01:13]} 19. Qf3 {[%clk 0:01:28.2]} 19... Ng8
{[%clk 0:01:06.2]} 20. Qg3 {[%clk 0:01:21]} 20... Qg7 {[%clk 0:01:00.8]} 21. a4
{[%clk 0:00:48.2]} 21... a6 {[%clk 0:00:56.8]} 22. Kh1 {[%clk 0:00:37.7]} 22...
Nf6 {[%clk 0:00:56.5]} 23. Bxf6 {[%clk 0:00:37.7]} 23... Rxf6 {[%clk 0:00:55.1]}
24. h3 {[%clk 0:00:33.9]} 24... Rg8 {[%clk 0:00:40.1]} 25. Qf2 {[%clk
0:00:26.9]} 25... Kh8 {[%clk 0:00:32.8]} 26. Qe2 {[%clk 0:00:26.7]} 26... Ra8
{[%clk 0:00:28.9]} 27. Rf3 {[%clk 0:00:24]} 27... Bxe5 {[%clk 0:00:24.3]} 28.
dxe5 {[%clk 0:00:21.2]} 28... Rf7 {[%clk 0:00:22.9]} 29. Rg3 {[%clk 0:00:21.6]}
29... Kh7 {[%clk 0:00:21.4]} 30. h4 {[%clk 0:00:21.3]} 30... h5 {[%clk
0:00:15.4]} 31. Rg5 {[%clk 0:00:20.4]} 31... Kg8 {[%clk 0:00:13.5]} 32. Rf1
{[%clk 0:00:16.9]} 32... Kf8 {[%clk 0:00:13.4]} 33. Rf3 {[%clk 0:00:16.6]} 33...
Ke7 {[%clk 0:00:13.3]} 34. Rfg3 {[%clk 0:00:16.8]} 34... Qh7 {[%clk 0:00:09.2]}
35. Rxg6 {[%clk 0:00:16.1]} 35... c4 {[%clk 0:00:07]} 36. Bc2 {[%clk 0:00:15.1]}
36... Raf8 {[%clk 0:00:05.1]} 37. R6g5 {[%clk 0:00:13.2]} 37... Qh8 {[%clk
0:00:04.5]} 38. Rxh5 {[%clk 0:00:12.6]} 38... Rh7 {[%clk 0:00:04.5]} 39. Rxh7+
{[%clk 0:00:11.3]} 39... Qxh7 {[%clk 0:00:05.4]} 40. h5 {[%clk 0:00:10.7]} 40...
Rh8 {[%clk 0:00:05]} 41. Rg5 {[%clk 0:00:10.8]} 41... Bc6 {[%clk 0:00:03.1]} 42.
g4 {[%clk 0:00:09.6]} 42... Bd7 {[%clk 0:00:01.2]} 43. Kg2 {[%clk 0:00:07.7]}
1-0

[Event "Late-Titled-Tuesday-Blitz-September-12-2023"]
[Site "Chess.com"]
[Date "2023.09.12"]
[Round "6"]
[White "enestnrvrd"]
[Black "artin10862"]
[Result "0-1"]
[WhiteElo "2729"]
[BlackElo "2958"]
[TimeControl "180+1"]
[EndTime "15:04:27 PDT"]
[Termination "artin10862 won on time"]

1. Nf3 {[%clk 0:03:00.9]} 1... c5 {[%clk 0:02:58]} 2. e4 {[%clk 0:02:59.7]} 2...
d6 {[%clk 0:02:57.5]} 3. d4 {[%clk 0:03:00.2]} 3... cxd4 {[%clk 0:02:58.4]} 4.
Nxd4 {[%clk 0:03:00.8]} 4... Nf6 {[%clk 0:02:58.1]} 5. Nc3 {[%clk 0:03:01.4]}
5... a6 {[%clk 0:02:58.5]} 6. Bd3 {[%clk 0:03:01.9]} 6... g6 {[%clk 0:02:56.6]}
7. O-O {[%clk 0:02:46.3]} 7... Bg7 {[%clk 0:02:56.3]} 8. a4 {[%clk 0:02:44.5]}
8... O-O {[%clk 0:02:55.4]} 9. h3 {[%clk 0:02:42.3]} 9... Bd7 {[%clk 0:02:49.5]}
10. Be3 {[%clk 0:02:40.9]} 10... Nc6 {[%clk 0:02:49]} 11. Nb3 {[%clk 0:02:40.9]}
11... Na5 {[%clk 0:02:31]} 12. Qd2 {[%clk 0:02:29.1]} 12... Nxb3 {[%clk
0:02:23.1]} 13. cxb3 {[%clk 0:02:30]} 13... Bc6 {[%clk 0:02:23.6]} 14. Rae1
{[%clk 0:02:25.4]} 14... Nd7 {[%clk 0:02:05.4]} 15. Bh6 {[%clk 0:02:23.5]} 15...
Nc5 {[%clk 0:01:57]} 16. Bxg7 {[%clk 0:02:22.5]} 16... Kxg7 {[%clk 0:01:57.2]}
17. Bc2 {[%clk 0:02:23.1]} 17... a5 {[%clk 0:01:56.3]} 18. f4 {[%clk 0:02:21.5]}
18... Qb6 {[%clk 0:01:54.4]} 19. Kh2 {[%clk 0:02:18.9]} 19... Nxb3 {[%clk
0:01:50.4]} 20. Bxb3 {[%clk 0:02:18.3]} 20... Qxb3 {[%clk 0:01:51.3]} 21. f5
{[%clk 0:02:17.7]} 21... f6 {[%clk 0:01:47.5]} 22. Re3 {[%clk 0:02:15.1]} 22...
Qb4 {[%clk 0:01:46.2]} 23. Rg3 {[%clk 0:02:13.4]} 23... Rf7 {[%clk 0:01:32.7]}
24. Rf4 {[%clk 0:02:08.8]} 24... g5 {[%clk 0:00:39]} 25. Rfg4 {[%clk 0:02:07.9]}
25... h6 {[%clk 0:00:38.7]} 26. h4 {[%clk 0:02:07.1]} 26... Rh8 {[%clk
0:00:37.9]} 27. e5 {[%clk 0:01:59.7]} 27... Qc5 {[%clk 0:00:37]} 28. e6 {[%clk
0:01:59.4]} 28... Rff8 {[%clk 0:00:36.4]} 29. Qd3 {[%clk 0:01:36.5]} 29... Rfg8
{[%clk 0:00:27]} 30. Rc4 {[%clk 0:00:34.3]} 30... Qe5 {[%clk 0:00:25.3]} 31. h5
{[%clk 0:00:28.1]} 31... Rc8 {[%clk 0:00:22.6]} 32. Kg1 {[%clk 0:00:22.9]} 32...
Qe1+ {[%clk 0:00:22.3]} 33. Kh2 {[%clk 0:00:22.7]} 33... Qf2 {[%clk 0:00:20.6]}
34. Rcg4 {[%clk 0:00:16.1]} 34... Qxb2 {[%clk 0:00:17.6]} 35. Nd5 {[%clk
0:00:16.2]} 35... Bxd5 {[%clk 0:00:14.4]} 36. Qxd5 {[%clk 0:00:17.1]} 36... Rc5
{[%clk 0:00:13.3]} 37. Qe4 {[%clk 0:00:16.5]} 37... Rhc8 {[%clk 0:00:12.2]} 38.
Rf4 {[%clk 0:00:09.1]} 38... Qe5 {[%clk 0:00:09.9]} 39. Qxb7 {[%clk 0:00:08.7]}
39... R5c7 {[%clk 0:00:06.9]} 40. Qf3 {[%clk 0:00:07]} 40... Rc3 {[%clk
0:00:06.7]} 41. Qb7 {[%clk 0:00:07.2]} 41... R8c7 {[%clk 0:00:06.6]} 42. Qb8
{[%clk 0:00:07.4]} 42... Qxf4 {[%clk 0:00:06]} 0-1